[Event "Early-Titled-Tuesday-Blitz-January-30-2024"]
[Site "Chess.com"]
[Date "2024.01.30"]
[Round "1"]
[White "RCone"]
[Black "Evgeny81"]
[Result "0-1"]
[WhiteElo "2414"]
[BlackElo "2754"]
[TimeControl "180+1"]
[EndTime "8:08:14 PST"]
[Termination "Evgeny81 won on time"]

1. e4 {[%clk 0:03:00.9]} 1... c5 {[%clk 0:02:59.4]} 2. Nc3 {[%clk 0:02:59.9]}
2... g6 {[%clk 0:02:59]} 3. d4 {[%clk 0:02:54.3]} 3... Bg7 {[%clk 0:02:59.1]} 4.
dxc5 {[%clk 0:02:53.1]} 4... Qa5 {[%clk 0:02:57.8]} 5. Bd2 {[%clk 0:02:41]} 5...
Qxc5 {[%clk 0:02:56.8]} 6. Nd5 {[%clk 0:02:40.3]} 6... a5 {[%clk 0:02:39.8]} 7.
b4 {[%clk 0:02:07.7]} 7... Qd6 {[%clk 0:02:24.5]} 8. bxa5 {[%clk 0:01:51.5]}
8... Nc6 {[%clk 0:02:20.9]} 9. Nb6 {[%clk 0:01:27.2]} 9... Rb8 {[%clk
0:02:15.2]} 10. Rb1 {[%clk 0:01:23.7]} 10... Nf6 {[%clk 0:02:09.2]} 11. Bd3
{[%clk 0:01:22.2]} 11... Ne5 {[%clk 0:01:53.2]} 12. Bb4 {[%clk 0:01:13.5]} 12...
Qc6 {[%clk 0:01:43.4]} 13. Nf3 {[%clk 0:01:06.2]} 13... Nxe4 {[%clk 0:01:38.4]}
14. Nxe5 {[%clk 0:00:45.3]} 14... Bxe5 {[%clk 0:01:39.3]} 15. O-O {[%clk
0:00:44.5]} 15... Nc3 {[%clk 0:01:30.9]} 16. Qe1 {[%clk 0:00:44.1]} 16... Bf6
{[%clk 0:01:27]} 17. Rb3 {[%clk 0:00:43.7]} 17... Nxa2 {[%clk 0:00:58.2]} 18.
Be4 {[%clk 0:00:24.7]} 18... Qe6 {[%clk 0:00:49.9]} 19. Bc5 {[%clk 0:00:13.1]}
19... d6 {[%clk 0:00:42.8]} 20. Ba3 {[%clk 0:00:08.9]} 20... O-O {[%clk
0:00:40.9]} 21. Qd2 {[%clk 0:00:07.8]} 21... Qxe4 {[%clk 0:00:40]} 22. c3 {[%clk
0:00:07.4]} 22... Be6 {[%clk 0:00:29.6]} 23. Qxa2 {[%clk 0:00:06.3]} 23... Bxb3
{[%clk 0:00:25.9]} 24. Qxb3 {[%clk 0:00:06.9]} 24... Rfd8 {[%clk 0:00:24.5]} 25.
Bb4 {[%clk 0:00:07.5]} 25... Qd3 {[%clk 0:00:24.1]} 26. f3 {[%clk 0:00:07.9]}
26... Qe3+ {[%clk 0:00:23.6]} 27. Kh1 {[%clk 0:00:07.9]} 27... e6 {[%clk
0:00:22]} 28. Rd1 {[%clk 0:00:07.4]} 28... d5 {[%clk 0:00:21.2]} 29. Qc2 {[%clk
0:00:06]} 29... d4 {[%clk 0:00:19.7]} 30. c4 {[%clk 0:00:05.8]} 30... d3 {[%clk
0:00:19.7]} 31. Qd2 {[%clk 0:00:05.3]} 31... Qxd2 {[%clk 0:00:19.3]} 32. Bxd2
{[%clk 0:00:05.9]} 32... h5 {[%clk 0:00:16.1]} 33. Kg1 {[%clk 0:00:06]} 33...
Bd4+ {[%clk 0:00:13.7]} 34. Kf1 {[%clk 0:00:06.2]} 34... Bxb6 {[%clk 0:00:14.1]}
35. axb6 {[%clk 0:00:05.9]} 35... Ra8 {[%clk 0:00:15]} 36. c5 {[%clk 0:00:05.4]}
36... Rdc8 {[%clk 0:00:13.7]} 37. Be3 {[%clk 0:00:04.9]} 37... Ra3 {[%clk
0:00:13.6]} 38. Kf2 {[%clk 0:00:04]} 38... f6 {[%clk 0:00:13.5]} 39. f4 {[%clk
0:00:04.2]} 39... Kf7 {[%clk 0:00:13.7]} 40. Kf3 {[%clk 0:00:04.4]} 40... e5
{[%clk 0:00:10.5]} 41. fxe5 {[%clk 0:00:03.1]} 41... fxe5 {[%clk 0:00:11.4]} 42.
Ke4 {[%clk 0:00:03]} 42... Ke6 {[%clk 0:00:11.9]} 43. Rxd3 {[%clk 0:00:02.9]}
43... Rxd3 {[%clk 0:00:12]} 44. Kxd3 {[%clk 0:00:03.8]} 44... Kd5 {[%clk
0:00:12.4]} 45. h4 {[%clk 0:00:03]} 45... Rxc5 {[%clk 0:00:12.1]} 46. Bxc5
{[%clk 0:00:03.2]} 46... Kxc5 {[%clk 0:00:13]} 47. Ke4 {[%clk 0:00:03.5]} 47...
Kxb6 {[%clk 0:00:11.4]} 48. Kxe5 {[%clk 0:00:03.9]} 48... Kc5 {[%clk 0:00:12]}
49. Kf6 {[%clk 0:00:04.7]} 49... b5 {[%clk 0:00:12.5]} 50. Kxg6 {[%clk
0:00:05.6]} 50... b4 {[%clk 0:00:13]} 51. g4 {[%clk 0:00:06.5]} 51... b3 {[%clk
0:00:13.1]} 52. gxh5 {[%clk 0:00:06.5]} 52... b2 {[%clk 0:00:13.5]} 53. h6
{[%clk 0:00:07.4]} 53... b1=Q+ {[%clk 0:00:14.1]} 54. Kg7 {[%clk 0:00:06.3]}
54... Qb2+ {[%clk 0:00:13.9]} 55. Kg8 {[%clk 0:00:06]} 55... Qg2+ {[%clk
0:00:13.1]} 56. Kf7 {[%clk 0:00:05]} 56... Qf3+ {[%clk 0:00:12]} 57. Kg7 {[%clk
0:00:04.5]} 57... Qg4+ {[%clk 0:00:12]} 0-1

[Event "Early-Titled-Tuesday-Blitz-January-30-2024"]
[Site "Chess.com"]
[Date "2024.01.30"]
[Round "1"]
[White "jcibarra"]
[Black "kecalk"]
[Result "1/2-1/2"]
[WhiteElo "2856"]
[BlackElo "2505"]
[TimeControl "180+1"]
[EndTime "8:08:15 PST"]
[Termination "Game drawn - insufficient material"]

1. e4 {[%clk 0:02:56.8]} 1... e5 {[%clk 0:02:59.5]} 2. Nf3 {[%clk 0:02:56.8]}
2... Nc6 {[%clk 0:02:58.2]} 3. Bb5 {[%clk 0:02:46.3]} 3... a6 {[%clk 0:02:56.2]}
4. Bxc6 {[%clk 0:02:46.1]} 4... dxc6 {[%clk 0:02:55.7]} 5. O-O {[%clk 0:02:47]}
5... Qf6 {[%clk 0:02:53.7]} 6. d4 {[%clk 0:02:46.4]} 6... exd4 {[%clk
0:02:53.9]} 7. Bg5 {[%clk 0:02:47]} 7... Qd6 {[%clk 0:02:54]} 8. Nxd4 {[%clk
0:02:47.5]} 8... Be7 {[%clk 0:02:54.4]} 9. Be3 {[%clk 0:02:47.4]} 9... Nf6
{[%clk 0:02:53.9]} 10. f3 {[%clk 0:02:47]} 10... c5 {[%clk 0:02:53.7]} 11. Nb3
{[%clk 0:02:46.1]} 11... b6 {[%clk 0:02:53.8]} 12. N1d2 {[%clk 0:02:44.6]} 12...
Bb7 {[%clk 0:02:48.9]} 13. a4 {[%clk 0:02:43]} 13... a5 {[%clk 0:02:46.7]} 14.
Nc4 {[%clk 0:02:41.4]} 14... Qe6 {[%clk 0:02:40.8]} 15. Na3 {[%clk 0:02:41.6]}
15... Nd7 {[%clk 0:02:20.9]} 16. Nb5 {[%clk 0:02:37.5]} 16... O-O-O {[%clk
0:02:20.6]} 17. Bf4 {[%clk 0:02:31.8]} 17... Ne5 {[%clk 0:02:18.1]} 18. Qe1
{[%clk 0:02:31.9]} 18... g5 {[%clk 0:02:15.5]} 19. Bg3 {[%clk 0:02:29]} 19... f6
{[%clk 0:01:48.7]} 20. Qc3 {[%clk 0:02:20.6]} 20... Rd7 {[%clk 0:01:43.5]} 21.
Nd2 {[%clk 0:02:13.2]} 21... h5 {[%clk 0:01:31.3]} 22. Bxe5 {[%clk 0:02:10.6]}
22... fxe5 {[%clk 0:01:32.2]} 23. Nc4 {[%clk 0:02:09.6]} 23... Bf6 {[%clk
0:01:30.2]} 24. Rad1 {[%clk 0:02:09.3]} 24... Rd4 {[%clk 0:01:29.2]} 25. Nxd4
{[%clk 0:02:05.7]} 25... exd4 {[%clk 0:01:29.2]} 26. Qb3 {[%clk 0:02:05.8]}
26... Re8 {[%clk 0:01:12.8]} 27. Nd2 {[%clk 0:02:01.4]} 27... Ba6 {[%clk
0:00:59.9]} 28. Qxe6+ {[%clk 0:01:53.6]} 28... Rxe6 {[%clk 0:01:00.8]} 29. b3
{[%clk 0:01:32.4]} 29... Bxf1 {[%clk 0:00:54.5]} 30. Kxf1 {[%clk 0:01:33.3]}
30... Be5 {[%clk 0:00:47.6]} 31. g3 {[%clk 0:01:32.7]} 31... h4 {[%clk
0:00:44.4]} 32. Kg2 {[%clk 0:01:32.2]} 32... c6 {[%clk 0:00:41.5]} 33. Nc4
{[%clk 0:01:31.1]} 33... Bc7 {[%clk 0:00:41.5]} 34. Kh3 {[%clk 0:01:25.4]} 34...
Kb7 {[%clk 0:00:38.5]} 35. Kg4 {[%clk 0:01:24.9]} 35... b5 {[%clk 0:00:36]} 36.
Nb2 {[%clk 0:01:25.1]} 36... Kb6 {[%clk 0:00:21.4]} 37. Kf5 {[%clk 0:01:07]}
37... Re5+ {[%clk 0:00:20.7]} 38. Kf6 {[%clk 0:01:07.6]} 38... Re8 {[%clk
0:00:20.3]} 39. Rg1 {[%clk 0:01:04.1]} 39... Rf8+ {[%clk 0:00:19.8]} 40. Kxg5
{[%clk 0:01:02.7]} 40... hxg3 {[%clk 0:00:20]} 41. hxg3 {[%clk 0:00:53.6]} 41...
Rxf3 {[%clk 0:00:20.6]} 42. Rg2 {[%clk 0:00:27.1]} 42... Rxg3+ {[%clk
0:00:16.5]} 43. Rxg3 {[%clk 0:00:27.7]} 43... Bxg3 {[%clk 0:00:17.4]} 44. Kf5
{[%clk 0:00:28.2]} 44... c4 {[%clk 0:00:03.7]} 45. bxc4 {[%clk 0:00:25.8]} 45...
Kc5 {[%clk 0:00:04.1]} 46. cxb5 {[%clk 0:00:18.4]} 46... cxb5 {[%clk 0:00:05]}
47. axb5 {[%clk 0:00:14.4]} 47... Kxb5 {[%clk 0:00:05.9]} 48. e5 {[%clk
0:00:14.6]} 48... a4 {[%clk 0:00:05.6]} 49. e6 {[%clk 0:00:10.7]} 49... Bd6
{[%clk 0:00:04.7]} 50. Nxa4 {[%clk 0:00:07.7]} 50... Kxa4 {[%clk 0:00:03.3]} 51.
Ke4 {[%clk 0:00:08.6]} 51... Kb5 {[%clk 0:00:03.1]} 52. Kxd4 {[%clk 0:00:08.9]}
52... Kc6 {[%clk 0:00:03.6]} 53. e7 {[%clk 0:00:09.1]} 53... Bxe7 {[%clk
0:00:03.8]} 54. c4 {[%clk 0:00:08.9]} 54... Bc5+ {[%clk 0:00:04.7]} 55. Ke4
{[%clk 0:00:09]} 55... Bb6 {[%clk 0:00:05.6]} 56. Kf5 {[%clk 0:00:09.7]} 56...
Bc5 {[%clk 0:00:06.5]} 57. Kg6 {[%clk 0:00:10.5]} 57... Bd6 {[%clk 0:00:07]} 58.
c5 {[%clk 0:00:11]} 58... Kxc5 {[%clk 0:00:07.9]} 1/2-1/2

[Event "Early-Titled-Tuesday-Blitz-January-30-2024"]
[Site "Chess.com"]
[Date "2024.01.30"]
[Round "1"]
[White "SahibSinghKnight"]
[Black "flomarechot"]
[Result "1-0"]
[WhiteElo "2657"]
[BlackElo "2334"]
[TimeControl "180+1"]
[EndTime "8:08:17 PST"]
[Termination "SahibSinghKnight won by resignation"]

1. e4 {[%clk 0:03:00.9]} 1... d6 {[%clk 0:02:56]} 2. d4 {[%clk 0:03:00]} 2...
Nf6 {[%clk 0:02:55.5]} 3. Nc3 {[%clk 0:03:00.4]} 3... e5 {[%clk 0:02:55.6]} 4.
Nf3 {[%clk 0:02:59.2]} 4... Nbd7 {[%clk 0:02:53.7]} 5. Bc4 {[%clk 0:02:58.9]}
5... Be7 {[%clk 0:02:54.1]} 6. O-O {[%clk 0:02:58.5]} 6... O-O {[%clk
0:02:53.5]} 7. Re1 {[%clk 0:02:58.6]} 7... c6 {[%clk 0:02:53.6]} 8. a4 {[%clk
0:02:57.2]} 8... b6 {[%clk 0:02:53.1]} 9. h3 {[%clk 0:02:04.5]} 9... a6 {[%clk
0:02:50.7]} 10. d5 {[%clk 0:01:56.1]} 10... cxd5 {[%clk 0:02:48.7]} 11. Nxd5
{[%clk 0:01:55.8]} 11... Bb7 {[%clk 0:02:39.7]} 12. b3 {[%clk 0:01:34.5]} 12...
Nxd5 {[%clk 0:02:25]} 13. Bxd5 {[%clk 0:01:33.8]} 13... Bxd5 {[%clk 0:02:22.8]}
14. Qxd5 {[%clk 0:01:28.9]} 14... Qc7 {[%clk 0:02:19.8]} 15. c4 {[%clk
0:01:14.5]} 15... h6 {[%clk 0:02:04.9]} 16. Ba3 {[%clk 0:01:10.1]} 16... Rab8
{[%clk 0:01:42.8]} 17. Rad1 {[%clk 0:00:44]} 17... Nc5 {[%clk 0:01:19]} 18. Bxc5
{[%clk 0:00:30.1]} 18... bxc5 {[%clk 0:01:18.3]} 19. Qd3 {[%clk 0:00:30.6]}
19... Rb4 {[%clk 0:01:11.5]} 20. Qc2 {[%clk 0:00:26.9]} 20... Rfb8 {[%clk
0:01:09.7]} 21. Rd3 {[%clk 0:00:27]} 21... Qb6 {[%clk 0:01:04]} 22. Ree3 {[%clk
0:00:18.4]} 22... h5 {[%clk 0:00:56.3]} 23. h4 {[%clk 0:00:17.4]} 23... g6
{[%clk 0:00:54.7]} 24. g3 {[%clk 0:00:17.4]} 24... Bf8 {[%clk 0:00:55.2]} 25.
Rc3 {[%clk 0:00:15.1]} 25... a5 {[%clk 0:00:46]} 26. Red3 {[%clk 0:00:08.5]}
26... Bh6 {[%clk 0:00:44.4]} 27. Qd1 {[%clk 0:00:05.2]} 27... Bf8 {[%clk
0:00:32.4]} 28. Nd2 {[%clk 0:00:05.3]} 28... Qc7 {[%clk 0:00:28.8]} 29. Nb1
{[%clk 0:00:04.8]} 29... R8b6 {[%clk 0:00:26]} 30. Na3 {[%clk 0:00:05]} 30...
Qe7 {[%clk 0:00:22.2]} 31. Nb5 {[%clk 0:00:05.1]} 31... Qf6 {[%clk 0:00:22.2]}
32. Rf3 {[%clk 0:00:05.1]} 32... Qe7 {[%clk 0:00:22.1]} 33. Rcd3 {[%clk
0:00:05.4]} 33... Bg7 {[%clk 0:00:20.4]} 34. Rxd6 {[%clk 0:00:04]} 34... Rxd6
{[%clk 0:00:17.9]} 35. Qxd6 {[%clk 0:00:04.9]} 35... Bf8 {[%clk 0:00:15.2]} 36.
Qxe7 {[%clk 0:00:04.6]} 36... Bxe7 {[%clk 0:00:16.1]} 37. Kf1 {[%clk 0:00:04.6]}
37... Kg7 {[%clk 0:00:16.2]} 38. Ke2 {[%clk 0:00:04.7]} 38... Kf8 {[%clk
0:00:16.2]} 39. Kd1 {[%clk 0:00:05]} 39... Ke8 {[%clk 0:00:16.7]} 40. Kc2 {[%clk
0:00:05.6]} 40... Kd7 {[%clk 0:00:16.3]} 41. Rd3+ {[%clk 0:00:06.3]} 41... Ke6
{[%clk 0:00:15.3]} 42. Rd5 {[%clk 0:00:04.8]} 42... f5 {[%clk 0:00:13.5]} 43. f3
{[%clk 0:00:02.9]} 43... f4 {[%clk 0:00:13.4]} 44. gxf4 {[%clk 0:00:02.7]} 44...
exf4 {[%clk 0:00:13.6]} 45. Rd3 {[%clk 0:00:03.5]} 45... Bxh4 {[%clk 0:00:12.8]}
46. Nc7+ {[%clk 0:00:04.3]} 46... Kf6 {[%clk 0:00:11.3]} 47. Nd5+ {[%clk
0:00:03.8]} 47... Ke5 {[%clk 0:00:11.8]} 48. Nxb4 {[%clk 0:00:04.7]} 48... axb4
{[%clk 0:00:12.5]} 49. Rd5+ {[%clk 0:00:05.2]} 49... Ke6 {[%clk 0:00:13.3]} 50.
Rxc5 {[%clk 0:00:06.1]} 50... Bf2 {[%clk 0:00:13.3]} 51. Rd5 {[%clk 0:00:05.7]}
51... h4 {[%clk 0:00:13.1]} 52. Rd2 {[%clk 0:00:05.8]} 52... Bg3 {[%clk
0:00:10.7]} 53. a5 {[%clk 0:00:05.7]} 53... h3 {[%clk 0:00:10.3]} 54. a6 {[%clk
0:00:06.3]} 54... h2 {[%clk 0:00:10.9]} 55. Rxh2 {[%clk 0:00:06.6]} 55... Bxh2
{[%clk 0:00:11.8]} 56. a7 {[%clk 0:00:07.4]} 1-0

[Event "Early-Titled-Tuesday-Blitz-January-30-2024"]
[Site "Chess.com"]
[Date "2024.01.30"]
[Round "1"]
[White "VinzentSpitzl"]
[Black "carloseduar100"]
[Result "1-0"]
[WhiteElo "2619"]
[BlackElo "2278"]
[TimeControl "180+1"]
[EndTime "8:08:17 PST"]
[Termination "VinzentSpitzl won by resignation"]

1. e4 {[%clk 0:03:00]} 1... e6 {[%clk 0:02:59.8]} 2. d4 {[%clk 0:02:59.8]} 2...
d5 {[%clk 0:02:57.6]} 3. Nd2 {[%clk 0:03:00.3]} 3... Nf6 {[%clk 0:02:56.3]} 4.
e5 {[%clk 0:03:01]} 4... Nfd7 {[%clk 0:02:56.2]} 5. Bd3 {[%clk 0:03:00.6]} 5...
c5 {[%clk 0:02:56.2]} 6. c3 {[%clk 0:03:00.7]} 6... Nc6 {[%clk 0:02:55.4]} 7.
Ne2 {[%clk 0:03:01.4]} 7... f6 {[%clk 0:02:55.5]} 8. exf6 {[%clk 0:02:57.3]}
8... Nxf6 {[%clk 0:02:53.7]} 9. Nf3 {[%clk 0:02:57.5]} 9... cxd4 {[%clk
0:02:52.8]} 10. cxd4 {[%clk 0:02:57.6]} 10... Bd6 {[%clk 0:02:52.5]} 11. O-O
{[%clk 0:02:56.8]} 11... O-O {[%clk 0:02:52.6]} 12. Bf4 {[%clk 0:02:56.7]} 12...
a6 {[%clk 0:02:50.2]} 13. Qd2 {[%clk 0:02:48.9]} 13... Qc7 {[%clk 0:02:48.9]}
14. Bxd6 {[%clk 0:02:47.5]} 14... Qxd6 {[%clk 0:02:49.8]} 15. Rac1 {[%clk
0:02:37.9]} 15... Bd7 {[%clk 0:02:48.7]} 16. h3 {[%clk 0:02:37.6]} 16... Rae8
{[%clk 0:02:48.6]} 17. Rfe1 {[%clk 0:02:35]} 17... Bc8 {[%clk 0:02:43.5]} 18.
Bb1 {[%clk 0:02:32.5]} 18... g6 {[%clk 0:02:42.7]} 19. a3 {[%clk 0:02:16]} 19...
e5 {[%clk 0:02:28.2]} 20. dxe5 {[%clk 0:02:15]} 20... Nxe5 {[%clk 0:02:28.2]}
21. Nxe5 {[%clk 0:02:13.5]} 21... Rxe5 {[%clk 0:02:25.9]} 22. Nd4 {[%clk
0:02:10.3]} 22... Ne4 {[%clk 0:02:20.9]} 23. Bxe4 {[%clk 0:01:59.3]} 23... dxe4
{[%clk 0:02:18.7]} 24. Qe3 {[%clk 0:01:59.1]} 24... Qb6 {[%clk 0:02:03]} 25. Rc2
{[%clk 0:01:45.2]} 25... Rd8 {[%clk 0:01:56.1]} 26. Rd2 {[%clk 0:01:44.6]} 26...
Red5 {[%clk 0:01:51.3]} 27. Red1 {[%clk 0:01:44.8]} 27... Qf6 {[%clk 0:00:59.1]}
28. Qxe4 {[%clk 0:01:37.2]} 28... b5 {[%clk 0:00:49.9]} 29. Qe3 {[%clk
0:01:28.9]} 29... Bb7 {[%clk 0:00:42.8]} 30. Nf3 {[%clk 0:01:19.9]} 30... Kg7
{[%clk 0:00:24.3]} 31. Rxd5 {[%clk 0:01:17.5]} 31... Rxd5 {[%clk 0:00:24.1]} 32.
Rxd5 {[%clk 0:01:15.8]} 32... Bxd5 {[%clk 0:00:25]} 33. Ne5 {[%clk 0:01:15.9]}
33... h5 {[%clk 0:00:20.5]} 34. f3 {[%clk 0:01:10.8]} 34... Be6 {[%clk
0:00:20.4]} 35. Qd4 {[%clk 0:01:07.8]} 35... g5 {[%clk 0:00:18.8]} 36. Nc6
{[%clk 0:01:04.6]} 36... Qxd4+ {[%clk 0:00:19.1]} 37. Nxd4 {[%clk 0:01:05.1]}
37... Bc4 {[%clk 0:00:18.8]} 38. Kf2 {[%clk 0:01:03.5]} 38... Kf6 {[%clk
0:00:19.2]} 39. Ke3 {[%clk 0:01:02.6]} 39... Ke5 {[%clk 0:00:19.7]} 40. Nc6+
{[%clk 0:00:48.7]} 40... Kd6 {[%clk 0:00:19.1]} 41. Nd4 {[%clk 0:00:44.8]} 41...
Ke5 {[%clk 0:00:19.5]} 42. g3 {[%clk 0:00:38.2]} 42... Bf1 {[%clk 0:00:18.7]}
43. h4 {[%clk 0:00:37.1]} 43... gxh4 {[%clk 0:00:18.8]} 44. gxh4 {[%clk
0:00:38]} 44... Kd5 {[%clk 0:00:19]} 45. f4 {[%clk 0:00:27.6]} 45... Bh3 {[%clk
0:00:18.9]} 46. b3 {[%clk 0:00:23.4]} 46... Bg4 {[%clk 0:00:19.2]} 47. Nc2
{[%clk 0:00:20]} 47... Bd1 {[%clk 0:00:18.4]} 48. Nb4+ {[%clk 0:00:20.1]} 48...
Ke6 {[%clk 0:00:18.9]} 49. Nxa6 {[%clk 0:00:20.2]} 49... Bxb3 {[%clk 0:00:19.2]}
50. Nc5+ {[%clk 0:00:20.6]} 50... Kf5 {[%clk 0:00:19.4]} 51. Nxb3 {[%clk
0:00:21.5]} 51... Kg4 {[%clk 0:00:20.3]} 52. Ke4 {[%clk 0:00:21.6]} 52... Kxh4
{[%clk 0:00:21.2]} 53. Nd2 {[%clk 0:00:21.5]} 53... Kg4 {[%clk 0:00:21.1]} 54.
Nf3 {[%clk 0:00:21.7]} 54... h4 {[%clk 0:00:21.2]} 55. Nxh4 {[%clk 0:00:21.9]}
55... Kxh4 {[%clk 0:00:22.1]} 56. f5 {[%clk 0:00:22.5]} 56... Kg5 {[%clk
0:00:23]} 57. Ke5 {[%clk 0:00:23.2]} 57... Kh6 {[%clk 0:00:23.4]} 58. Ke6 {[%clk
0:00:23.1]} 58... Kg7 {[%clk 0:00:23.8]} 59. Ke7 {[%clk 0:00:23.2]} 59... Kh7
{[%clk 0:00:23.8]} 60. f6 {[%clk 0:00:23.3]} 60... Kg6 {[%clk 0:00:24.7]} 61. f7
{[%clk 0:00:23.4]} 61... Kf5 {[%clk 0:00:25.6]} 62. f8=Q+ {[%clk 0:00:22.9]}
62... Ke4 {[%clk 0:00:26.5]} 63. Qb8 {[%clk 0:00:23.1]} 63... Kd5 {[%clk
0:00:27.4]} 64. Qxb5+ {[%clk 0:00:22.9]} 1-0

[Event "Early-Titled-Tuesday-Blitz-January-30-2024"]
[Site "Chess.com"]
[Date "2024.01.30"]
[Round "1"]
[White "Aygehovit1992"]
[Black "Rosh1610"]
[Result "1-0"]
[WhiteElo "2691"]
[BlackElo "2371"]
[TimeControl "180+1"]
[EndTime "8:08:18 PST"]
[Termination "Aygehovit1992 won on time"]

1. e4 {[%clk 0:03:00.9]} 1... c5 {[%clk 0:02:58.5]} 2. Nf3 {[%clk 0:03:00.9]}
2... d6 {[%clk 0:02:58]} 3. d4 {[%clk 0:03:01.3]} 3... cxd4 {[%clk 0:02:58.5]}
4. Nxd4 {[%clk 0:03:02.2]} 4... Nf6 {[%clk 0:02:57.8]} 5. Nc3 {[%clk 0:03:02.7]}
5... a6 {[%clk 0:02:57.9]} 6. Bg5 {[%clk 0:03:02.8]} 6... e6 {[%clk 0:02:57.2]}
7. f4 {[%clk 0:03:02.3]} 7... Be7 {[%clk 0:02:55.5]} 8. Qf3 {[%clk 0:03:01.8]}
8... Qc7 {[%clk 0:02:54.3]} 9. O-O-O {[%clk 0:03:00.4]} 9... Nbd7 {[%clk
0:02:49.6]} 10. g4 {[%clk 0:02:52]} 10... h6 {[%clk 0:02:48.9]} 11. Bxf6 {[%clk
0:02:49]} 11... Bxf6 {[%clk 0:02:49.8]} 12. Qh3 {[%clk 0:02:43.1]} 12... Nb6
{[%clk 0:02:26.5]} 13. f5 {[%clk 0:02:34]} 13... e5 {[%clk 0:01:41.2]} 14. Nf3
{[%clk 0:02:33]} 14... g5 {[%clk 0:01:25.5]} 15. fxg6 {[%clk 0:02:24.9]} 15...
fxg6 {[%clk 0:01:23.4]} 16. Nd5 {[%clk 0:02:18.2]} 16... Nxd5 {[%clk 0:01:21.3]}
17. exd5 {[%clk 0:02:19.1]} 17... h5 {[%clk 0:01:08.7]} 18. Qg2 {[%clk
0:02:16.1]} 18... hxg4 {[%clk 0:01:04.4]} 19. Nd2 {[%clk 0:02:15.5]} 19... Bg5
{[%clk 0:01:00.2]} 20. Kb1 {[%clk 0:02:14.5]} 20... Bf5 {[%clk 0:00:51.3]} 21.
Ne4 {[%clk 0:02:13.3]} 21... Be7 {[%clk 0:00:50.9]} 22. Be2 {[%clk 0:02:10.4]}
22... O-O-O {[%clk 0:00:49.1]} 23. Bxg4 {[%clk 0:02:08.8]} 23... Kb8 {[%clk
0:00:49.3]} 24. h3 {[%clk 0:02:07.1]} 24... Rc8 {[%clk 0:00:46.7]} 25. Rhf1
{[%clk 0:02:03.6]} 25... Rhf8 {[%clk 0:00:45.7]} 26. b3 {[%clk 0:01:32.9]} 26...
a5 {[%clk 0:00:38.9]} 27. a4 {[%clk 0:01:29.6]} 27... Qb6 {[%clk 0:00:37.5]} 28.
Kb2 {[%clk 0:01:10.7]} 28... Qb4 {[%clk 0:00:34.2]} 29. Bxf5 {[%clk 0:01:06.9]}
29... gxf5 {[%clk 0:00:33.4]} 30. Ng3 {[%clk 0:00:52.1]} 30... Rg8 {[%clk
0:00:14.3]} 31. Rd3 {[%clk 0:00:23.3]} 31... f4 {[%clk 0:00:13.1]} 32. c3 {[%clk
0:00:22.2]} 32... Qb6 {[%clk 0:00:09.7]} 33. Rff3 {[%clk 0:00:15.9]} 33... fxg3
{[%clk 0:00:09.5]} 34. Rxg3 {[%clk 0:00:16.6]} 34... Rxg3 {[%clk 0:00:08.1]} 35.
Rxg3 {[%clk 0:00:17.5]} 35... Rf8 {[%clk 0:00:05.9]} 36. Rf3 {[%clk 0:00:16.3]}
36... Rxf3 {[%clk 0:00:05.3]} 37. Qxf3 {[%clk 0:00:17.2]} 37... Qd8 {[%clk
0:00:04.8]} 38. b4 {[%clk 0:00:14.8]} 38... Qf8 {[%clk 0:00:04.5]} 39. Qe4
{[%clk 0:00:13.9]} 39... axb4 {[%clk 0:00:04.6]} 40. Qxb4 {[%clk 0:00:12.9]}
40... Qf2+ {[%clk 0:00:04.6]} 41. Kb3 {[%clk 0:00:13.4]} 41... Qc5 {[%clk
0:00:05.5]} 42. Qe4 {[%clk 0:00:03.9]} 42... Bd8 {[%clk 0:00:05.4]} 43. h4
{[%clk 0:00:03.6]} 43... Ba5 {[%clk 0:00:05]} 44. Qd3 {[%clk 0:00:04.2]} 44...
e4 {[%clk 0:00:04]} 45. Qxe4 {[%clk 0:00:04.6]} 45... Qxc3+ {[%clk 0:00:04]} 46.
Ka2 {[%clk 0:00:04.9]} 46... Qd2+ {[%clk 0:00:02.3]} 47. Kb3 {[%clk 0:00:05]}
47... Qc3+ {[%clk 0:00:02.5]} 48. Ka2 {[%clk 0:00:05.4]} 1-0